bitfinex/quotes_SOLUSD_20250612
["timestamp","ask_amount","ask_price","bid_price","bid_amount"]
[1749694085514,41.12439745,160.64,160.59,5.76]
[1749694085515,26.0,160.61,160.59,5.76]
[1749694085827,13.59959745,160.6,160.59,5.76]
[1749694086831,26.0,160.61,160.59,5.76]
[1749694087034,13.59959745,160.6,160.59,5.76]
[1749694089432,13.59959745,160.6,160.59,5.90216157]
[1749694089617,13.59959745,160.6,160.59,5.76]
[1749694090019,13.59959745,160.6,160.57,48.66]
[1749694090221,13.59959745,160.58,160.57,48.66]
[1749694092720,26.0,160.62,160.57,48.66]
[1749694093029,13.59959745,160.58,160.57,48.66]
[1749694093541,13.59959745,160.6,160.58,0.14216157]
[1749694093926,13.59959745,160.59,160.58,0.14216157]
[1749694096431,13.59959745,160.59,160.57,31.56]
[1749694096627,39.59959745,160.64,160.57,31.56]
[1749694096628,13.59959745,160.58,160.57,31.56]
[1749694097331,13.59959745,160.58,160.57,5.7]
[1749694099056,27.1991949,160.58,160.57,5.7]
[1749694099258,27.1991949,160.58,160.53,5.7]
[1749694099428,13.59959745,160.54,160.53,5.7]
[1749694100236,13.59959745,160.56,160.53,5.7]
[1749694100533,13.59959745,160.55,160.53,5.7]
[1749694100730,13.59959745,160.54,160.53,5.7]
[1749694101150,39.59959745,160.54,160.53,5.7]
[1749694102024,13.59959745,160.54,160.53,5.7]
[1749694102226,13.59959745,160.54,160.53,5.84216157]
[1749694103551,13.59959745,160.54,160.53,5.7]
[1749694105047,13.59959745,160.56,160.53,5.7]
[1749694105253,13.59959745,160.54,160.53,5.7]
[1749694106736,39.59959745,160.54,160.53,5.7]
[1749694111650,0.28432314,160.6,160.53,5.7]
[1749694111853,13.59959745,160.54,160.53,5.7]
[1749694117747,13.59959745,160.56,160.53,5.7]
[1749694117950,13.59959745,160.54,160.53,5.7]
[1749694119656,26.0,160.54,160.53,5.7]
[1749694119850,39.59959745,160.54,160.53,5.7]
[1749694122357,26.0,160.54,160.53,5.7]
[1749694122567,13.59959745,160.56,160.53,5.7]
[1749694122738,13.59959745,160.55,160.53,5.7]
[1749694124154,13.59959745,160.54,160.53,5.7]
[1749694125174,13.59959745,160.55,160.53,5.7]
[1749694126167,13.59959745,160.54,160.53,5.7]
[1749694129586,13.59959745,160.58,160.54,0.14216157]
[1749694130458,13.59959745,160.57,160.54,0.14216157]
[1749694130648,13.59959745,160.55,160.54,0.14216157]
[1749694130855,13.59959745,160.55,160.53,5.7]
[1749694131064,13.59959745,160.54,160.53,5.7]
[1749694131881,26.0,160.61,160.53,5.7]
[1749694132049,13.59959745,160.54,160.53,5.7]
[1749694132245,13.59959745,160.55,160.53,5.7]
[1749694135182,13.59959745,160.56,160.53,5.7]
[1749694136577,13.59959745,160.55,160.53,5.7]
[1749694137080,26.0,160.61,160.53,5.7]
[1749694137474,13.59959745,160.55,160.53,5.7]
[1749694138268,13.59959745,160.54,160.53,5.84216157]
[1749694138983,13.59959745,160.55,160.53,5.84216157]
[1749694143185,13.59959745,160.55,160.53,5.7]
[1749694143373,13.59959745,160.54,160.53,5.7]
[1749694144286,13.59959745,160.55,160.53,5.7]
[1749694144870,13.59959745,160.54,160.53,5.7]
[1749694147074,13.59959745,160.56,160.53,5.7]
[1749694147274,13.59959745,160.54,160.53,5.7]
[1749694148073,13.59959745,160.55,160.53,5.7]
[1749694149287,26.0,160.57,160.53,5.7]
[1749694149490,13.59959745,160.54,160.53,5.7]
[1749694150176,13.59959745,160.55,160.53,5.7]
[1749694150687,13.59959745,160.54,160.53,5.7]
[1749694151188,13.59959745,160.55,160.53,5.7]
[1749694151873,26.0,160.57,160.54,0.14216157]
[1749694152194,13.59959745,160.56,160.54,0.14216157]
[1749694152982,13.59959745,160.55,160.54,0.14216157]
[1749694153884,13.59959745,160.56,160.54,0.14216157]
[1749694157886,39.59959745,160.55,160.54,0.14216157]
[1749694158196,26.0,160.55,160.54,0.14216157]
[1749694158779,13.59959745,160.56,160.54,0.14216157]
[1749694160516,13.59959745,160.55,160.54,0.14216157]
[1749694162655,13.59959745,160.55,160.53,5.7]
[1749694163002,26.0,160.58,160.53,5.7]
[1749694163003,13.59959745,160.54,160.53,5.7]
[1749694164606,32.22679559,160.6,160.53,5.7]
[1749694164911,13.59959745,160.54,160.53,5.7]
[1749694172919,13.59959745,160.55,160.53,5.7]
[1749694173119,13.59959745,160.56,160.53,5.7]
[1749694173818,1.5137,160.62,160.54,18.79181043]
[1749694174015,13.59959745,160.62,160.57,13.59959745]
[1749694174234,13.59959745,160.62,160.58,0.14216157]
[1749694174900,26.0,160.65,160.58,19.07613357]
[1749694175109,13.59959745,160.65,160.6,32.67573102]
[1749694176630,13.59959745,160.64,160.6,32.67573102]
[1749694177133,13.59959745,160.64,160.6,19.07613357]
[1749694179998,26.0,160.68,160.6,32.67573102]
[1749694180200,13.59959745,160.64,160.6,32.67573102]
[1749694180428,26.0,160.61,160.6,32.67573102]
[1749694181339,13.59959745,160.64,160.6,32.67573102]
[1749694183239,13.59959745,160.64,160.6,19.07613357]
[1749694183940,13.59959745,160.65,160.6,32.67573102]
[1749694184735,13.59959745,160.66,160.63,0.14216157]
[1749694184934,13.59959745,160.66,160.64,5.62]
[1749694185542,13.59959745,160.67,160.64,5.62]
[1749694185912,26.0,160.65,160.64,5.62]
[1749694186111,13.59959745,160.65,160.64,5.76216157]
[1749694188838,13.59959745,160.65,160.64,5.62]
[1749694190130,13.59959745,160.65,160.64,5.76216157]
[1749694190643,13.59959745,160.66,160.64,5.76216157]
[1749694191721,26.0,160.69,160.64,5.76216157]
[1749694191931,13.59959745,160.7,160.65,25.84216157]
[1749694192216,149.1,160.73,160.65,25.84216157]
[1749694192217,13.59959745,160.69,160.65,25.84216157]
[1749694193136,13.59959745,160.68,160.65,25.84216157]
[1749694194921,13.59959745,160.7,160.67,0.14216157]
[1749694195132,6.2664,160.76,160.67,0.14216157]
[1749694195133,13.59959745,160.73,160.69,0.14216157]
[1749694195336,26.0,160.7,160.69,0.14216157]
[1749694196225,13.59959745,160.7,160.68,25.72]
[1749694196425,26.0,160.67,160.66,25.84216157]
[1749694196630,39.59959745,160.67,160.65,25.72]
[1749694196831,13.59959745,160.66,160.65,25.86216157]
[1749694197047,13.59959745,160.66,160.64,5.62]
[1749694197226,13.59959745,160.65,160.64,31.34]
[1749694197432,26.0,160.69,160.64,31.34]
[1749694197634,13.59959745,160.66,160.65,0.14216157]
[1749694198039,26.0,160.69,160.65,0.14216157]
[1749694198040,13.59959745,160.67,160.65,0.14216157]
[1749694198849,13.59959745,160.67,160.65,25.86216157]
[1749694199638,26.0,160.69,160.65,25.86216157]
[1749694199639,13.59959745,160.66,160.65,0.14216157]
[1749694200861,13.59959745,160.66,160.64,5.62]
[1749694201035,26.0,160.69,160.64,5.62]
[1749694201036,13.59959745,160.65,160.64,5.62]
[1749694203152,26.0,160.68,160.64,5.62]
[1749694203358,13.59959745,160.65,160.64,5.62]
[1749694211357,27.1991949,160.65,160.64,5.62]
[1749694214375,13.59959745,160.65,160.64,5.62]
[1749694214764,26.0,160.67,160.64,5.62]
[1749694214943,13.59959745,160.65,160.64,5.62]
[1749694215142,7.7306,160.7,160.64,5.62]
[1749694215369,13.59959745,160.66,160.64,5.62]
[1749694215743,7.7306,160.7,160.64,5.62]
[1749694215744,13.59959745,160.65,160.64,5.62]
[1749694219760,27.1991949,160.65,160.64,5.62]
[1749694219966,13.59959745,160.65,160.64,5.62]
[1749694220264,27.1991949,160.65,160.64,5.62]
[1749694220880,27.1991949,160.65,160.54,15.14639745]
[1749694220881,35.29663014,160.65,160.54,1.5468]
[1749694221057,26.0,160.61,160.58,5.62]
[1749694221263,13.59959745,160.59,160.58,5.62]
[1749694223248,6.3944,160.63,160.58,5.62]
[1749694223471,13.59959745,160.59,160.58,5.62]
[1749694225359,26.0,160.6,160.58,5.62]
[1749694225561,13.59959745,160.59,160.58,5.62]
[1749694233755,1.87272314,160.65,160.58,5.62]
[1749694233756,1.5884,160.65,160.58,5.62]
[1749694233966,149.1,160.69,160.59,0.14216157]
[1749694233967,13.59959745,160.63,160.59,0.14216157]
[1749694234168,13.59959745,160.64,160.59,13.74175902]
[1749694234389,26.0,160.61,160.59,13.74175902]
[1749694234587,26.0,160.6,160.59,0.14216157]
[1749694235908,26.0,160.66,160.59,0.14216157]
[1749694236066,26.0,160.6,160.59,0.14216157]
[1749694237368,26.0,160.66,160.59,0.14216157]
[1749694237588,26.0,160.6,160.59,0.14216157]
[1749694242708,26.0,160.66,160.59,0.14216157]
[1749694243016,26.0,160.6,160.59,0.14216157]
[1749694250217,26.0,160.59,160.58,31.46216157]
[1749694250904,26.0,160.65,160.58,31.46216157]
[1749694251106,26.0,160.59,160.58,31.46216157]
[1749694251313,13.59959745,160.6,160.58,31.46216157]
[1749694251501,13.59959745,160.6,160.58,31.32]
[1749694252826,26.0,160.59,160.58,5.62]
[1749694253028,26.0,160.59,160.58,31.32]
[1749694253820,13.59959745,160.6,160.58,31.32]
[1749694254709,13.59959745,160.59,160.58,31.32]
[1749694255519,13.59959745,160.59,160.58,5.62]
[1749694256313,28.7904949,160.59,160.58,5.62]
[1749694256536,28.7904949,160.59,160.47,1.5153]
[1749694256537,26.0,160.56,160.52,5.62]
[1749694256825,13.59959745,160.53,160.52,5.62]
[1749694260333,26.0,160.5,160.47,5.62]
[1749694260646,13.59959745,160.48,160.47,5.62]
[1749694262646,1.5011,160.53,160.47,5.62]
[1749694262954,13.59959745,160.53,160.48,39.29959745]
[1749694263326,26.0,160.5,160.48,39.29959745]
[1749694264825,26.0,160.49,160.48,25.84216157]
[1749694265233,0.28432314,160.6,160.5,0.14216157]
[1749694265436,13.59959745,160.55,160.5,15.33695902]
[1749694265642,26.0,160.52,160.51,13.74175902]
[1749694266448,26.0,160.52,160.51,0.14216157]
[1749694266644,13.59959745,160.55,160.51,0.14216157]
[1749694266835,26.0,160.53,160.52,25.7]
[1749694267543,13.59959745,160.54,160.52,25.7]
[1749694267867,13.59959745,160.53,160.52,25.7]
[1749694268071,26.0,160.53,160.52,25.7]
[1749694268378,13.59959745,160.55,160.52,25.7]
[1749694268379,8.0629,160.61,160.54,0.14216157]
[1749694268661,13.59959745,160.57,160.55,25.7]
[1749694268961,26.0,160.58,160.56,5.62]
[1749694269162,13.59959745,160.57,160.56,5.62]
[1749694270167,13.59959745,160.58,160.56,5.62]
[1749694271058,26.0,160.61,160.56,5.62]
[1749694271261,13.59959745,160.6,160.56,5.76216157]
[1749694271588,13.59959745,160.59,160.56,5.76216157]
[1749694272652,13.59959745,160.57,160.56,5.62]
[1749694273241,26.0,160.6,160.56,5.62]
[1749694273464,13.59959745,160.57,160.56,5.62]
[1749694279971,13.59959745,160.58,160.56,5.62]
[1749694280673,26.0,160.61,160.56,5.62]
[1749694280850,13.59959745,160.59,160.56,5.62]
[1749694281051,13.59959745,160.58,160.56,5.62]
[1749694283974,13.59959745,160.57,160.56,5.62]
[1749694285076,13.59959745,160.58,160.56,5.62]
[1749694288479,13.59959745,160.57,160.56,5.62]
[1749694291382,26.0,160.54,160.48,1.6151]
[1749694291675,26.0,160.54,160.49,5.62]
[1749694291676,13.59959745,160.5,160.49,5.62]
[1749694291881,13.59959745,160.53,160.49,5.62]
[1749694292072,13.59959745,160.51,160.49,5.62]
[1749694292269,13.59959745,160.5,160.49,5.62]
[1749694292469,13.59959745,160.5,160.49,5.76216157]
[1749694292672,13.59959745,160.5,160.49,5.62]
[1749694296565,27.1991949,160.5,160.49,5.62]
[1749694296770,13.59959745,160.5,160.49,5.62]
[1749694300085,26.0,160.51,160.49,5.62]
[1749694300285,13.59959745,160.5,160.49,5.62]
[1749694311490,26.0,160.51,160.49,5.62]
[1749694311782,13.59959745,160.5,160.49,5.62]
[1749694313807,39.59959745,160.5,160.49,5.62]
[1749694316626,13.59959745,160.5,160.49,5.62]
[1749694319110,26.0,160.54,160.49,5.62]
[1749694319427,13.59959745,160.5,160.49,5.62]
[1749694320309,26.0,160.53,160.49,5.62]
[1749694320519,13.59959745,160.5,160.49,5.62]
[1749694330411,1.5973,160.57,160.49,5.62]
[1749694330609,13.59959745,160.52,160.49,5.62]
[1749694330811,13.59959745,160.51,160.49,5.62]
[1749694333338,13.59959745,160.5,160.49,31.32]
[1749694333846,13.59959745,160.51,160.49,31.32]
[1749694334545,13.59959745,160.5,160.49,31.32]
[1749694335833,13.59959745,160.51,160.49,31.32]
[1749694336419,13.59959745,160.5,160.49,31.32]
[1749694337648,13.59959745,160.51,160.49,31.32]
[1749694338741,13.59959745,160.5,160.49,31.32]
[1749694339846,13.59959745,160.5,160.49,5.62]
[1749694350352,13.59959745,160.52,160.49,31.32]
[1749694350761,1.5973,160.57,160.49,31.32]
[1749694351080,13.59959745,160.52,160.49,31.32]
[1749694351756,14.11834166,160.62,160.5,32.67573102]
[1749694351952,13.59959745,160.55,160.5,32.67573102]
[1749694352364,13.59959745,160.55,160.5,19.07613357]
[1749694352573,13.59959745,160.55,160.5,32.67573102]
[1749694353261,13.59959745,160.54,160.5,19.07613357]
[1749694354989,26.0,160.53,160.5,19.07613357]
[1749694357358,13.59959745,160.54,160.5,19.07613357]
[1749694358062,13.59959745,160.55,160.5,32.67573102]
[1749694358268,13.59959745,160.56,160.52,0.14216157]
[1749694358491,13.59959745,160.56,160.53,25.7]
[1749694359374,26.0,160.59,160.54,0.14216157]
[1749694359691,13.59959745,160.57,160.54,19.07613357]
[1749694359869,13.59959745,160.58,160.54,19.07613357]
[1749694361169,13.59959745,160.57,160.54,19.07613357]
[1749694361376,13.59959745,160.56,160.54,19.07613357]
[1749694362064,26.0,160.6,160.54,19.07613357]
[1749694362065,13.59959745,160.57,160.54,19.07613357]
[1749694366798,26.0,160.6,160.55,31.3]
[1749694367364,26.0,160.6,160.55,5.62]
[1749694367673,32.4491,160.6,160.55,5.62]
[1749694367874,13.59959745,160.56,160.55,5.62]
[1749694372100,13.59959745,160.57,160.55,5.62]
[1749694372602,13.59959745,160.56,160.55,5.62]
[1749694376383,13.59959745,160.57,160.55,5.62]
[1749694378517,13.59959745,160.57,160.56,25.68]
[1749694378911,13.59959745,160.58,160.56,25.68]
[1749694380217,26.0,160.6,160.56,25.68]
[1749694380400,13.59959745,160.58,160.56,25.68]
[1749694382408,13.59959745,160.57,160.56,25.68]
[1749694385725,26.0,160.6,160.56,25.68]
[1749694385915,13.59959745,160.57,160.56,25.68]
[1749694387426,8.73157597,160.57,160.56,25.68]
[1749694390153,34.73157597,160.57,160.56,25.68]
[1749694396847,8.73157597,160.57,160.56,25.68]
[1749694397553,8.73157597,160.57,160.56,31.28]
[1749694398561,8.73157597,160.58,160.56,31.28]
[1749694399235,8.73157597,160.61,160.57,18.79181043]
[1749694399442,6.4308,160.68,160.57,18.79181043]
[1749694399443,4.65561797,160.67,160.59,27.80770954]
[1749694399657,6.4308,160.68,160.59,27.80770954]
[1749694399658,8.73157597,160.65,160.62,0.14216157]
[1749694399850,6.4308,160.68,160.63,25.66]
[1749694400052,6.4308,160.68,160.61,25.66]
[1749694400743,6.4308,160.68,160.62,0.14216157]
[1749694401159,8.73157597,160.65,160.62,0.14216157]
[1749694404181,26.0,160.69,160.62,19.07613357]
[1749694404478,8.73157597,160.66,160.62,19.07613357]
[1749694405284,8.73157597,160.65,160.62,19.07613357]
[1749694410278,8.73157597,160.66,160.62,19.07613357]
[1749694411595,8.73157597,160.65,160.62,19.07613357]
[1749694412107,8.73157597,160.63,160.56,10.23607597]
[1749694412288,32.22319492,160.69,160.62,5.6]
[1749694412289,34.92630388,160.64,160.62,5.6]
[1749694412596,8.73157597,160.63,160.6,5.6]
[1749694412780,8.73157597,160.61,160.6,5.6]
[1749694415513,39.64574252,160.61,160.6,5.6]
[1749694418478,13.64574252,160.61,160.6,5.6]
[1749694422099,39.64574252,160.61,160.6,5.6]
[1749694423706,39.64574252,160.61,160.57,5.6]
[1749694424006,13.64574252,160.58,160.57,5.6]
[1749694437104,13.64574252,160.59,160.57,5.6]
[1749694437293,26.0,160.63,160.57,5.6]
[1749694437494,13.64574252,160.59,160.58,25.80216157]
[1749694440017,13.64574252,160.59,160.58,25.66]
[1749694442602,13.64574252,160.59,160.57,5.6]
[1749694442802,13.64574252,160.58,160.57,5.6]
[1749694450026,13.64574252,160.58,160.49,13.64574252]
[1749694450233,7.6597,160.62,160.56,5.6]
[1749694451428,13.64574252,160.57,160.56,5.6]
[1749694457255,27.29148504,160.57,160.56,5.6]
[1749694459939,13.64574252,160.57,160.56,5.6]
[1749694461244,27.29148504,160.57,160.56,5.6]
[1749694470062,27.29148504,160.57,160.48,27.625]
[1749694470063,27.29148504,160.57,160.53,5.58]
[1749694470267,13.64574252,160.54,160.53,5.58]
[1749694470441,13.64574252,160.54,160.46,18.933972]
[1749694470442,13.64574252,160.54,160.5,5.58]
[1749694470776,13.64574252,160.51,160.5,5.58]
[1749694474073,27.29148504,160.51,160.47,5.58]
[1749694474247,27.29148504,160.48,160.47,5.58]
[1749694479877,27.29148504,160.48,160.4,1.79626157]
[1749694480189,27.29148504,160.48,160.43,5.58]
[1749694480190,13.64574252,160.48,160.43,5.58]
[1749694480870,39.64574252,160.48,160.43,5.58]
[1749694481287,13.64574252,160.44,160.43,5.58]
[1749694483289,13.64574252,160.44,160.39,5.58]
[1749694483465,13.64574252,160.4,160.39,5.58]
[1749694486296,27.29148504,160.4,160.39,5.58]
[1749694487273,13.64574252,160.42,160.39,5.58]
[1749694487577,13.64574252,160.41,160.39,5.58]
[1749694487798,13.64574252,160.4,160.39,5.72216157]
[1749694489601,13.64574252,160.41,160.39,5.72216157]
[1749694490682,13.64574252,160.41,160.4,25.94216157]
[1749694490882,13.64574252,160.45,160.42,1.74666157]
[1749694491981,26.0,160.5,160.42,1.74666157]
[1749694491982,13.64574252,160.44,160.42,1.74666157]
[1749694495705,13.64574252,160.48,160.42,1.74666157]
[1749694496015,13.64574252,160.44,160.42,1.74666157]
[1749694498818,13.64574252,160.43,160.42,0.14216157]
[1749694498998,13.64574252,160.43,160.41,25.78]
[1749694499197,13.64574252,160.42,160.41,25.78]
[1749694499719,13.64574252,160.42,160.39,5.58]
[1749694499895,13.64574252,160.4,160.39,24.513972]
[1749694500215,13.64574252,160.4,160.39,50.43613357]
[1749694500726,13.64574252,160.41,160.4,0.14216157]
[1749694502414,13.64574252,160.41,160.4,25.92216157]
[1749694503431,21.32554252,160.48,160.4,25.92216157]
[1749694503631,13.64574252,160.42,160.4,25.92216157]
[1749694503926,13.64574252,160.41,160.4,0.14216157]
[1749694504105,13.64574252,160.41,160.4,25.90216157]
[1749694504515,21.32554252,160.48,160.4,25.90216157]
[1749694504715,13.64574252,160.41,160.4,25.90216157]
[1749694505129,13.64574252,160.42,160.4,25.90216157]
[1749694505307,13.64574252,160.48,160.42,0.14216157]
[1749694505508,13.64574252,160.45,160.43,25.76]
[1749694506034,13.64574252,160.44,160.43,25.90216157]
[1749694509627,13.64574252,160.44,160.43,31.56216157]
[1749694510435,6.569,160.53,160.44,19.07613357]
[1749694510635,13.64574252,160.45,160.44,0.14216157]
[1749694510843,39.64574252,160.45,160.43,5.66]
[1749694511140,13.64574252,160.44,160.43,5.66]
[1749694514739,39.64574252,160.44,160.32,13.64574252]
[1749694514916,26.0,160.43,160.39,5.66]
[1749694515116,13.64574252,160.4,160.39,5.66]
[1749694519857,27.29148504,160.4,160.39,5.66]
[1749694520174,26.0,160.43,160.39,5.66]
[1749694520337,13.64574252,160.4,160.39,5.66]
[1749694521339,27.29148504,160.4,160.39,5.66]
[1749694524877,27.29148504,160.4,160.32,1.583]
[1749694525061,13.64574252,160.4,160.35,5.64]
[1749694526284,13.64574252,160.36,160.35,5.64]
[1749694535278,27.29148504,160.36,160.31,5.64]
[1749694535461,27.29148504,160.32,160.31,5.64]
[1749694543002,26.0,160.29,160.28,5.64]
[1749694543298,39.64574252,160.29,160.25,5.64]
[1749694543499,13.64574252,160.26,160.25,5.64]
[1749694549529,53.29148504,160.26,160.2,1.5677]
[1749694549720,13.64574252,160.24,160.22,5.64]
[1749694549887,13.64574252,160.23,160.22,5.64]
[1749694551690,150.6877,160.31,160.22,5.78216157]
[1749694551997,13.64574252,160.25,160.23,19.07613357]
[1749694552206,13.64574252,160.25,160.24,25.90216157]
[1749694554512,26.0,160.3,160.24,25.90216157]
[1749694555036,13.64574252,160.25,160.24,25.90216157]
[1749694555742,13.64574252,160.25,160.24,25.76]
[1749694559642,26.0,160.3,160.24,25.76]
[1749694559837,13.64574252,160.25,160.24,25.76]
[1749694563145,13.64574252,160.25,160.24,25.78]
[1749694563325,13.64574252,160.25,160.23,25.76]
[1749694563669,13.64574252,160.24,160.23,25.76]
[1749694565634,26.0,160.3,160.23,25.76]
[1749694565840,13.64574252,160.24,160.23,25.76]
[1749694567954,13.64574252,160.24,160.22,5.64]
[1749694568134,13.64574252,160.23,160.22,5.64]
[1749694568846,13.64574252,160.23,160.22,31.4]
[1749694569660,13.64574252,160.26,160.23,19.07613357]
[1749694570069,13.64574252,160.25,160.23,19.07613357]
[1749694572080,13.64574252,160.26,160.23,19.07613357]
[1749694573771,6.095,160.31,160.23,19.07613357]
[1749694573954,13.64574252,160.26,160.23,19.07613357]
[1749694575551,39.64574252,160.32,160.23,32.72187609]
[1749694575552,13.64574252,160.28,160.23,32.72187609]
[1749694575757,13.64574252,160.27,160.23,19.07613357]
[1749694576477,13.64574252,160.27,160.26,0.14216157]
[1749694576674,39.64574252,160.32,160.26,0.14216157]
[1749694576852,39.64574252,160.32,160.27,25.72]
[1749694577153,13.64574252,160.28,160.27,25.72]
[1749694580982,13.64574252,160.28,160.27,31.36]
[1749694587503,1.5821,160.34,160.28,0.14216157]
[1749694587687,13.64574252,160.33,160.3,0.14216157]
[1749694587871,13.64574252,160.33,160.31,25.7]
[1749694588075,26.0,160.36,160.31,5.6]
[1749694588076,27.29148504,160.32,160.31,5.6]
[1749694590676,26.0,160.36,160.31,5.6]
[1749694591095,27.29148504,160.32,160.31,5.6]
[1749694593882,13.64574252,160.32,160.31,5.6]
[1749694595481,26.0,160.36,160.31,5.6]
[1749694595792,13.64574252,160.32,160.31,5.6]
[1749694600687,27.29148504,160.32,160.31,5.6]
[1749694600886,27.29148504,160.32,160.26,25.68]
[1749694601208,13.64574252,160.32,160.29,5.6]
[1749694602213,13.64574252,160.3,160.29,5.6]
[1749694605615,13.64574252,160.31,160.3,0.14216157]
[1749694605911,13.64574252,160.32,160.3,0.14216157]
[1749694606499,27.5288,160.37,160.3,0.14216157]
[1749694606500,13.64574252,160.31,160.3,0.14216157]
[1749694606708,26.0,160.36,160.3,0.14216157]
[1749694607016,13.64574252,160.31,160.3,0.14216157]
[1749694608096,13.64574252,160.32,160.3,0.14216157]
[1749694609912,13.64574252,160.31,160.29,5.6]
[1749694610214,13.64574252,160.3,160.29,5.74216157]
[1749694613203,13.64574252,160.3,160.29,5.6]
[1749694613945,39.64574252,160.3,160.29,5.6]
[1749694614120,26.0,160.27,160.26,5.6]
[1749694614315,13.64574252,160.27,160.26,5.6]
[1749694616822,27.29148504,160.27,160.24,5.6]
[1749694617022,27.29148504,160.25,160.24,5.6]
[1749694617227,13.64574252,160.25,160.24,5.6]
[1749694619309,27.29148504,160.25,160.24,5.6]
[1749694619509,27.29148504,160.25,160.2,5.6]
[1749694619510,26.0,160.22,160.2,5.6]
[1749694619728,13.64574252,160.21,160.2,5.6]
[1749694624817,26.0,160.23,160.2,5.6]
[1749694625022,13.64574252,160.21,160.2,5.6]
[1749694625947,39.64574252,160.21,160.2,5.6]
[1749694633055,26.0,160.18,160.17,5.6]
[1749694633374,13.64574252,160.18,160.17,5.6]
[1749694640182,26.0,160.21,160.17,5.6]
[1749694640357,13.64574252,160.18,160.17,5.6]
[1749694644480,13.64574252,160.18,160.11,0.28432314]
[1749694644481,26.0,160.15,160.11,0.14216157]
[1749694644682,26.0,160.15,160.12,31.32]
[1749694644980,13.64574252,160.13,160.12,5.6]
[1749694645182,13.64574252,160.14,160.12,5.6]
[1749694645582,26.0,160.15,160.12,5.74216157]
[1749694645583,13.64574252,160.13,160.12,5.74216157]
[1749694645771,13.64574252,160.13,160.12,5.6]
[1749694648294,13.64574252,160.13,160.09,0.14216157]
[1749694648587,26.0,160.13,160.11,5.62]
[1749694649667,13.64574252,160.12,160.11,5.62]
[1749694651092,26.0,160.13,160.11,5.62]
[1749694651396,26.0,160.13,160.08,5.62]
[1749694651397,13.64574252,160.12,160.08,5.62]
[1749694651567,27.29148504,160.09,160.08,5.62]
[1749694651767,26.0,160.11,160.09,0.14216157]
[1749694652092,39.64574252,160.11,160.09,0.14216157]
[1749694652290,13.64574252,160.1,160.09,0.14216157]
[1749694653597,13.64574252,160.12,160.09,25.90216157]
[1749694653775,26.0,160.13,160.09,39.54790409]
[1749694653971,13.64574252,160.13,160.09,25.90216157]
[1749694654184,13.64574252,160.12,160.09,25.90216157]
[1749694654497,39.64574252,160.13,160.09,25.90216157]
[1749694654709,13.64574252,160.13,160.09,39.54790409]
[1749694654902,39.64574252,160.14,160.1,13.64574252]
[1749694655279,39.64574252,160.14,160.09,39.54790409]
[1749694655798,26.0,160.16,160.1,13.64574252]
[1749694655970,13.64574252,160.14,160.1,13.64574252]
[1749694656376,26.0,160.16,160.1,13.64574252]
[1749694656377,39.64574252,160.16,160.11,32.43755295]
[1749694656594,13.64574252,160.15,160.11,32.43755295]
[1749694657502,13.64574252,160.14,160.11,0.14216157]
[1749694657679,39.64574252,160.16,160.12,13.64574252]
[1749694657884,26.0,160.16,160.12,13.64574252]
[1749694658209,39.64574252,160.16,160.12,13.64574252]
[1749694659102,39.64574252,160.16,160.1,1.5572]
[1749694659300,39.64574252,160.16,160.11,13.64574252]
[1749694660799,26.0,160.12,160.11,13.64574252]
[1749694662394,26.0,160.16,160.11,13.64574252]
[1749694662595,26.0,160.12,160.11,13.64574252]
[1749694663005,13.64574252,160.14,160.1,13.64574252]
[1749694663216,13.64574252,160.14,160.09,39.50574252]
[1749694663520,26.0,160.12,160.1,13.64574252]
[1749694666418,26.0,160.12,160.11,13.64574252]
[1749694668322,26.0,160.12,160.1,39.48574252]
[1749694670122,26.0,160.16,160.1,39.48574252]